fUSD/lending_fUSD_20240319
["ID","MTS","AMOUNT","RATE_DAILY","PERIOD"]
[319599315,1710885123439,-1899.37,0.00032328,2]
[319599316,1710885123449,-825.81,0.00032328,2]
[319599317,1710885123459,-500.0,0.00032328,2]
[319599318,1710885123470,-500.0,0.00032328,2]
[319599319,1710885123479,-1668.46,0.00032328,2]
[319599320,1710885123488,-500.0,0.00032328,2]
[319599321,1710885123499,-1817.59,0.00032328,2]
[319599322,1710885123508,-612.56,0.00032328,2]
[319599323,1710885123518,-176.5788,0.00032328,7]
[319599324,1710885123527,-500.0,0.00032328,2]
[319599325,1710885123537,-641.85,0.00032328,2]
[319599326,1710885123549,-500.0,0.00032328,2]
[319599327,1710885123559,-3349.51,0.00032328,2]
[319599328,1710885123568,-1668.73,0.00032328,2]
[319599329,1710885123578,-500.0,0.00032328,2]
[319599330,1710885123587,-2185.83,0.00032328,2]
[319599331,1710885123596,-1047.88,0.00032328,2]
[319599332,1710885123606,-500.0,0.00032328,2]
[319599333,1710885123615,-709.8,0.00032328,2]
[319599334,1710885123625,-500.0,0.00032328,2]
[319599335,1710885123635,-3189.82,0.00032328,2]
[319599336,1710885123645,-500.0,0.00032328,2]
[319599337,1710885123654,-500.0,0.00032328,2]
[319599338,1710885123663,-2131.99,0.00032328,2]
[319599339,1710885123672,-500.0,0.00032328,2]
[319599340,1710885123682,-500.0,0.00032328,2]
[319599341,1710885123691,-2548.99,0.00032328,2]
[319599342,1710885123700,-1717.39,0.00032328,2]
[319599343,1710885123709,-500.0,0.00032328,2]
[319599344,1710885123718,-500.0,0.00032328,2]
[319599345,1710885123727,-3499.12,0.00032328,2]
[319599346,1710885123737,-3366.11,0.00032328,2]
[319599347,1710885123747,-920.95,0.00032328,2]
[319599348,1710885123756,-1172.13,0.00032328,2]
[319599349,1710885123765,-762.14,0.00032328,2]
[319599350,1710885123774,-500.0,0.00032328,2]
[319599351,1710885123783,-500.0,0.00032328,2]
[319599352,1710885123793,-619.11612775,0.00032328,2]
[319599353,1710885123802,-500.0,0.00032328,2]
[319599354,1710885123814,-500.0,0.00032328,2]
[319599355,1710885123824,-500.0,0.00032328,2]
[319599356,1710885123833,-2755.73,0.00032328,2]
[319599357,1710885123842,-651.81,0.00032328,2]
[319599358,1710885123852,-500.0,0.00032328,2]
[319599359,1710885123861,-2171.26,0.00032328,2]
[319599360,1710885123871,-554.31,0.00032328,2]
[319599361,1710885123881,-913.38,0.00032328,2]
[319599362,1710885123890,-517.56,0.00032328,2]
[319599363,1710885123900,-500.0,0.00032328,2]
[319599364,1710885123909,-622.91,0.00032328,2]
[319599365,1710885123918,-1265.69,0.00032328,2]
[319599366,1710885123928,-576.05,0.00032328,2]
[319599367,1710885123937,-2191.46,0.00032328,2]
[319599368,1710885123946,-1378.12,0.00032328,2]
[319599369,1710885123955,-287.65022017,0.00032328,2]
[319599370,1710885123964,-500.0,0.00032328,2]
[319599371,1710885123974,-832.3,0.00032328,2]
[319599372,1710885123983,-3259.21,0.00032328,2]
[319599373,1710885123993,-516.5,0.00032328,2]
[319599374,1710885124003,-500.0,0.00032328,2]
[319599375,1710885124012,-500.0,0.00032328,2]
[319599376,1710885124021,-750.69,0.00032328,2]
[319599377,1710885124031,-6099.55,0.00032328,2]
[319599378,1710885124040,-500.0,0.00032328,2]
[319599379,1710885124049,-705.53,0.00032328,2]
[319599380,1710885124058,-510.82,0.00032328,2]
[319599381,1710885124068,-583.59,0.00032328,2]
[319599382,1710885124077,-554.14,0.00032328,2]
[319599383,1710885124087,-1054.91,0.00032328,2]
[319599384,1710885124097,-1769.12,0.00032328,2]
[319599385,1710885124106,-500.0,0.00032328,2]
[319599386,1710885124116,-500.0,0.00032328,2]
[319599387,1710885124126,-758.11,0.00032328,2]
[319599388,1710885124135,-500.0,0.00032328,2]
[319599389,1710885124145,-614.47,0.00032328,2]
[319599390,1710885124155,-500.0,0.00032328,2]
[319599391,1710885124165,-565.83,0.00032328,2]
[319599392,1710885124174,-3031.48,0.00032328,2]
[319599393,1710885124183,-1793.05,0.00032328,2]
[319599394,1710885124195,-1813.36,0.00032328,2]
[319599395,1710885124204,-1781.25,0.00032328,2]
[319599396,1710885124214,-500.0,0.00032328,2]
[319599397,1710885124223,-500.0,0.00032328,2]
[319599398,1710885124232,-5948.25,0.00032328,2]
[319599399,1710885124242,-721.19,0.00032328,2]
[319599400,1710885124252,-500.0,0.00032328,2]
[319599401,1710885124262,-500.0,0.00032328,2]
[319599402,1710885124272,-2298.94,0.00032328,2]
[319599403,1710885124281,-500.0,0.00032328,2]
[319599404,1710885124290,-1467.68,0.00032328,2]
[319599405,1710885124300,-2048.3,0.00032328,2]
[319599406,1710885124309,-740.6,0.00032328,2]
[319599407,1710885124318,-500.0,0.00032328,2]
[319599408,1710885124328,-152.24629654,0.00032328,2]
[319599409,1710885124338,-3725.64,0.00032328,2]
[319599410,1710885124347,-500.0,0.00032328,2]
[319599411,1710885124357,-7446.28,0.00032328,2]
[319599412,1710885124367,-1176.01,0.00032328,2]
[319599413,1710885124376,-425.21477494,0.00032328,2]
[319599414,1710885124385,-500.0,0.00032328,2]
[319599415,1710885124395,-1639.61,0.00032328,2]
[319599416,1710885124405,-500.0,0.00032328,2]
[319599417,1710885124414,-814.35,0.00032328,2]
[319599418,1710885124423,-1904.86,0.00032328,2]
[319599419,1710885124433,-531.89,0.00032328,2]
[319599420,1710885124442,-541.15,0.00032328,2]
[319599421,1710885124452,-505.23,0.00032328,2]
[319599422,1710885124466,-1726.69,0.00032328,2]
[319599423,1710885124476,-237.235314,0.00032328,7]
[319599424,1710885124486,-500.0,0.00032328,2]
[319599425,1710885124496,-706.92,0.00032328,2]
[319599426,1710885124507,-1397.11,0.00032328,2]
[319599427,1710885124516,-644.74,0.00032328,2]
[319599428,1710885124526,-723.57,0.00032328,2]
[319599429,1710885124537,-2864.27,0.00032328,2]
[319599430,1710885124546,-2584.9,0.00032328,2]
[319599431,1710885124555,-500.0,0.00032328,2]
[319599432,1710885124564,-6961.76,0.00032328,2]
[319599433,1710885124573,-500.0,0.00032328,2]
[319599434,1710885124583,-1043.19,0.00032328,2]
[319599435,1710885124593,-915.89,0.00032328,2]
[319599436,1710885124603,-500.0,0.00032328,2]
[319599437,1710885124612,-1045.63,0.00032328,2]
[319599438,1710885124623,-1312.85,0.00032328,2]
[319599439,1710885124633,-961.87,0.00032328,2]
[319599440,1710885124642,-3736.86,0.00032328,2]
[319599441,1710885124651,-1764.05,0.00032328,2]
[319599442,1710885124661,-500.0,0.00032328,2]
[319599443,1710885124670,-838.02,0.00032328,2]
[319599444,1710885124680,-500.0,0.00032328,2]
[319599445,1710885124689,-1302.7,0.00032328,2]
[319599446,1710885124699,-2820.33,0.00032328,2]
[319599447,1710885124708,-500.0,0.00032328,2]
[319599448,1710885124718,-500.0,0.00032328,2]
[319599449,1710885124727,-2171.52,0.00032328,2]
[319599450,1710885124737,-4792.93,0.00032328,2]
[319599451,1710885124746,-1199.36,0.00032328,2]
[319599452,1710885124755,-500.0,0.00032328,2]
[319599453,1710885124767,-500.0,0.00032328,2]
[319599454,1710885124776,-2181.61,0.00032328,2]
[319599455,1710885124785,-500.0,0.00032328,2]
[319599456,1710885124795,-500.0,0.00032328,2]
[319599457,1710885124803,-492.20071265,0.00032328,2]
[319599458,1710885124813,-500.0,0.00032328,2]
[319599459,1710885124822,-501.95,0.00032328,2]
[319599460,1710885124833,-1621.75,0.00032328,2]
[319599461,1710885124842,-589.7,0.00032328,2]
[319599462,1710885124852,-855.86,0.00032328,2]
[319599463,1710885124861,-500.0,0.00032328,2]
[319599464,1710885124873,-3227.64,0.00032328,2]
[319599465,1710885124882,-500.0,0.00032328,2]
[319599466,1710885124891,-863.41,0.00032328,2]
[319599467,1710885124901,-2111.52,0.00032328,2]
[319599468,1710885124910,-2950.43,0.00032328,2]
[319599469,1710885125012,-500.0,0.00032328,2]
[319599470,1710885125022,-500.0,0.00032328,2]
[319599471,1710885125032,-5122.72,0.00032328,2]
[319599472,1710885125042,-824.14,0.00032328,2]
[319599473,1710885125051,-500.0,0.00032328,2]
[319599474,1710885125061,-10026.4,0.00032328,2]
[319599475,1710885125071,-500.0,0.00032328,2]
[319599476,1710885125080,-500.0,0.00032328,2]
[319599477,1710885125090,-2275.12,0.00032328,2]
[319599478,1710885125100,-500.0,0.00032328,2]
[319599479,1710885125110,-565.71,0.00032328,2]
[319599480,1710885125121,-1033.05,0.00032328,2]
[319599481,1710885125131,-126732.2,0.00032328,2]
[319599482,1710885125140,-504.07,0.00032328,2]
[319599483,1710885125150,-500.0,0.00032328,2]
[319599484,1710885125160,-500.0,0.00032328,2]
[319599485,1710885125170,-4852.56,0.00032328,2]
[319599486,1710885125180,-500.0,0.00032328,2]
[319599487,1710885125190,-2937.74,0.00032328,2]
[319599488,1710885125199,-1976.68,0.00032328,2]
[319599489,1710885125209,-777.71,0.00032328,2]
[319599490,1710885125220,-1133.54,0.00032328,2]
[319599491,1710885125229,-500.0,0.00032328,2]
[319599492,1710885125239,-2119.46,0.00032328,2]
[319599493,1710885125249,-7711.4,0.00032328,2]
[319599494,1710885125259,-524.36,0.00032328,2]
[319599495,1710885125270,-500.0,0.00032328,2]
[319599496,1710885125280,-7310.51,0.00032328,2]
[319599497,1710885125289,-14442.37,0.00032328,2]
[319599498,1710885125299,-500.0,0.00032328,2]
[319599499,1710885125309,-500.0,0.00032328,2]
[319599500,1710885125319,-500.0,0.00032328,2]
[319599501,1710885125329,-5376.56,0.00032328,2]
[319599502,1710885125339,-4230.03,0.00032328,2]
[319599503,1710885125350,-582.24,0.00032328,2]
[319599504,1710885125360,-751.89,0.00032328,2]
[319599505,1710885125371,-542.91,0.00032328,2]
[319599506,1710885125381,-500.0,0.00032328,2]
[319599507,1710885125391,-500.0,0.00032328,2]
[319599508,1710885125401,-1949.45,0.00032328,2]
[319599509,1710885125411,-5623.75,0.00032328,2]
[319599510,1710885125421,-1033.59,0.00032328,2]
[319599511,1710885125430,-500.0,0.00032328,2]
[319599512,1710885125440,-5877.04,0.00032328,2]
[319599513,1710885125452,-825.5,0.00032328,2]
[319599514,1710885125469,-521.04,0.00032328,2]
[319599515,1710885125479,-636.0,0.00032328,2]
[319599516,1710885125489,-503.31,0.00032328,2]
[319599517,1710885125499,-500.0,0.00032328,2]
[319599518,1710885125509,-3068.4,0.00032328,2]
[319599519,1710885125519,-2857.27,0.00032328,2]
[319599520,1710885125529,-631.3,0.00032328,2]
[319599521,1710885125538,-814.62,0.00032328,2]
[319599522,1710885125549,-500.0,0.00032328,2]
[319599523,1710885125560,-2550.99,0.00032328,2]
[319599524,1710885125569,-356.88257719,0.00032328,2]
[319599525,1710885125579,-1149.73,0.00032328,2]
[319599526,1710885125589,-7487.75,0.00032328,2]
[319599527,1710885125599,-1638.18,0.00032328,2]
[319599528,1710885125608,-7814.4,0.00032328,2]
[319599529,1710885125619,-529.96,0.00032328,2]
[319599530,1710885125628,-500.0,0.00032328,2]
[319599531,1710885125638,-705.8,0.00032328,2]
[319599532,1710885125647,-594.04,0.00032328,2]
[319599533,1710885125657,-500.0,0.00032328,2]
[319599534,1710885125667,-500.0,0.00032328,2]
[319599535,1710885125677,-500.0,0.00032328,2]
[319599536,1710885125689,-3016.27,0.00032328,2]
[319599537,1710885125708,-500.0,0.00032328,2]
[319599538,1710885125718,-38480.53,0.00032328,2]
[319599539,1710885125728,-2988.01,0.00032328,2]
[319599540,1710885125738,-968.19,0.00032328,2]
[319599541,1710885125747,-767.81,0.00032328,2]
[319599542,1710885125757,-3358.0,0.00032328,2]
[319599543,1710885125767,-500.0,0.00032328,2]
[319599544,1710885125777,-500.0,0.00032328,2]
[319599545,1710885125786,-2995.65,0.00032328,2]
[319599546,1710885125796,-500.0,0.00032328,2]
[319599547,1710885125806,-2879.31,0.00032328,2]
[319599548,1710885125816,-3475.26,0.00032328,2]
[319599549,1710885125826,-817.64,0.00032328,2]
[319599550,1710885125836,-626.59,0.00032328,2]
[319599551,1710885125846,-1532.23,0.00032328,2]
[319599552,1710885125857,-500.0,0.00032328,2]
[319599553,1710885125867,-1675.59,0.00032328,2]
[319599554,1710885125876,-1175.56,0.00032328,2]
[319599555,1710885125885,-1109.08,0.00032328,2]
[319599556,1710885125895,-1104.88,0.00032328,2]
[319599557,1710885125904,-1008.18,0.00032328,2]
[319599558,1710885125914,-2383.57,0.00032328,2]
[319599559,1710885125923,-6551.95,0.00032328,2]
[319599560,1710885125933,-20378.39,0.00032328,2]
[319599561,1710885125943,-3428.01,0.00032328,2]
[319599562,1710885125953,-500.0,0.00032328,2]
[319599563,1710885125962,-500.0,0.00032328,2]
[319599564,1710885125972,-475.38920494,0.00032328,2]
[319599565,1710885125981,-724.41,0.00032328,2]
[319599566,1710885125992,-4023.07,0.00032328,2]
[319599567,1710885126001,-2691.76,0.00032328,2]
[319599568,1710885126011,-500.0,0.00032328,2]
[319599569,1710885126020,-518.98,0.00032328,2]
[319599570,1710885126030,-532.04,0.00032328,2]
[319599571,1710885126040,-3655.41,0.00032328,2]
[319599572,1710885126050,-500.0,0.00032328,2]
[319599573,1710885126059,-3100.4,0.00032328,2]
[319599574,1710885126068,-532.61,0.00032328,2]
[319599575,1710885126077,-1495.58,0.00032328,2]
[319599576,1710885126087,-5255.9,0.00032328,2]
[319599577,1710885126096,-646.23,0.00032328,2]
[319599578,1710885126105,-500.0,0.00032328,2]
[319599579,1710885126114,-500.0,0.00032328,2]
[319599580,1710885126125,-856.3,0.00032328,2]
[319599581,1710885126134,-1919.76,0.00032328,2]
[319599582,1710885126143,-2848.19,0.00032328,2]
[319599583,1710885126153,-500.0,0.00032328,2]
[319599584,1710885126163,-514.35,0.00032328,2]
[319599585,1710885126173,-84885.72,0.00032328,2]
[319599586,1710885126182,-917.99,0.00032328,2]
[319599587,1710885126191,-7528.25,0.00032328,2]
[319599588,1710885126201,-2075.6,0.00032328,2]
[319599589,1710885126209,-556.06,0.00032328,2]
[319599590,1710885126219,-4053.66,0.00032328,2]
[319599591,1710885126228,-500.0,0.00032328,2]
[319599592,1710885126237,-950.92,0.00032328,2]
[319599593,1710885126246,-1498.56,0.00032328,2]
[319599594,1710885126256,-6114.82,0.00032328,2]
[319599595,1710885126265,-556.43549604,0.00032328,2]
[319599596,1710885126275,-1068.02,0.00032328,2]
[319599597,1710885126285,-1140.75,0.00032328,2]
[319599598,1710885126295,-1363.9,0.00032328,2]
[319599599,1710885126305,-500.0,0.00032328,2]
[319599600,1710885126314,-680.37,0.00032328,2]
[319599601,1710885126325,-7331.78,0.00032328,2]
[319599602,1710885126334,-500.0,0.00032328,2]
[319599603,1710885126344,-5255.76,0.00032328,2]
[319599604,1710885126354,-6608.67,0.00032328,2]
[319599605,1710885126364,-1065.89,0.00032328,2]
[319599606,1710885126376,-535.13,0.00032328,2]
[319599607,1710885126386,-2244.41,0.00032328,2]
[319599608,1710885126396,-1134.2,0.00032328,2]
[319599609,1710885126405,-12679.11,0.00032328,2]
[319599610,1710885126415,-501.67,0.00032328,2]
[319599611,1710885126425,-500.0,0.00032328,2]
[319599612,1710885126435,-500.0,0.00032328,2]
[319599613,1710885126445,-500.0,0.00032328,2]
[319599614,1710885126456,-952.29,0.00032328,2]
[319599615,1710885126468,-500.0,0.00032328,2]
[319599616,1710885126478,-16057.66,0.00032328,2]
[319599617,1710885126488,-5689.03,0.00032328,2]
[319599618,1710885126499,-9318.38,0.00032328,2]
[319599619,1710885126509,-661.71,0.00032328,2]
[319599620,1710885126519,-6799.03,0.00032328,2]
[319599621,1710885126530,-4026.73,0.00032328,2]
[319599622,1710885126541,-3035.5,0.00032328,2]
[319599624,1710885126552,-3750.07,0.00032328,2]
[319599625,1710885126563,-935.16,0.00032328,2]
[319599626,1710885126573,-6185.77,0.00032328,2]
[319599627,1710885126583,-1750.15,0.00032328,2]
[319599628,1710885126593,-507.49,0.00032328,2]
[319599629,1710885126603,-500.0,0.00032328,2]
[319599630,1710885126613,-21984.05,0.00032328,2]
[319599631,1710885126624,-500.0,0.00032328,2]
[319599632,1710885126634,-682.19,0.00032328,2]
[319599633,1710885126644,-1656.75,0.00032328,2]
[319599634,1710885126655,-3232.39,0.00032328,2]
[319599635,1710885126664,-2644.39,0.00032328,2]
[319599636,1710885126674,-4012.77,0.00032328,2]
[319599637,1710885126683,-500.0,0.00032328,2]
[319599638,1710885126693,-5906.29,0.00032328,2]
[319599639,1710885126703,-365.80286446,0.00032328,2]
[319599640,1710885126713,-500.0,0.00032328,2]
[319599641,1710885126723,-500.0,0.00032328,2]
[319599642,1710885126732,-462.55911512,0.00032328,2]
[319599643,1710885126742,-1898.34,0.00032328,2]
[319599644,1710885126752,-6356.12,0.00032328,2]
[319599645,1710885126762,-860.9,0.00032328,2]
[319599646,1710885126772,-2450.74,0.00032328,2]
[319599647,1710885126781,-296.39797786,0.00032328,2]
[319599648,1710885126791,-741.49,0.00032328,2]
[319599649,1710885126801,-988.62,0.00032328,2]
[319599650,1710885126811,-500.0,0.00032328,2]
[319599651,1710885126821,-502.93,0.00032328,2]
[319599652,1710885126831,-3281.78,0.00032328,2]
[319599653,1710885126840,-10393.93,0.00032328,2]
[319599654,1710885126850,-887.69,0.00032328,2]
[319599655,1710885126859,-2054.31,0.00032328,2]
[319599656,1710885126869,-1073.2,0.00032328,2]
[319599657,1710885126879,-500.0,0.00032328,2]
[319599658,1710885126889,-500.0,0.00032328,2]
[319599659,1710885126899,-5676.82,0.00032328,2]
[319599660,1710885126910,-500.0,0.00032328,2]
[319599661,1710885126919,-2336.1,0.00032328,2]
[319599662,1710885126930,-784.81,0.00032328,2]
[319599663,1710885126939,-500.0,0.00032328,2]
[319599664,1710885126949,-2928.09,0.00032328,2]
[319599665,1710885126959,-958.78,0.00032328,2]
[319599666,1710885126968,-5305.03,0.00032328,2]
[319599667,1710885126978,-12462.52,0.00032328,2]
[319599668,1710885126988,-742.85,0.00032328,2]
[319599669,1710885126997,-6273.21,0.00032328,2]
[319599670,1710885127006,-500.0,0.00032328,2]
[319599671,1710885127016,-500.0,0.00032328,2]
[319599672,1710885127025,-3248.64,0.00032328,2]
[319599673,1710885127035,-8000.71,0.00032328,2]
[319599674,1710885127045,-531.08366924,0.00032328,2]
[319599675,1710885127054,-7424.85,0.00032328,2]
[319599676,1710885127064,-9028.78,0.00032328,2]
[319599677,1710885127073,-7152.27,0.00032328,2]
[319599678,1710885127082,-603.25,0.00032328,2]
[319599679,1710885127092,-920.58,0.00032328,2]
[319599680,1710885127101,-11402.88,0.00032328,2]
[319599681,1710885127110,-862.02,0.00032328,2]
[319599682,1710885127122,-5180.59,0.00032328,2]
[319599683,1710885127131,-500.0,0.00032328,2]
[319599684,1710885127140,-1058.28,0.00032328,2]
[319599685,1710885127150,-6676.62,0.00032328,2]
[319599686,1710885127159,-50748.97,0.00032328,2]
[319599687,1710885127169,-12563.76,0.00032328,2]
[319599688,1710885127178,-4392.06,0.00032328,2]
[319599689,1710885127188,-500.0,0.00032328,2]
[319599690,1710885127198,-500.0,0.00032328,2]
[319599691,1710885127207,-947.45,0.00032328,2]
[319599692,1710885127217,-994.47,0.00032328,2]
[319599693,1710885127227,-6289.47,0.00032328,2]
[319599694,1710885127236,-1127.56,0.00032328,2]
[319599695,1710885127246,-500.0,0.00032328,2]
[319599696,1710885127256,-500.0,0.00032328,2]
[319599697,1710885127266,-1554.32,0.00032328,2]
[319599698,1710885127275,-1563.9,0.00032328,2]
[319599699,1710885127285,-2538.59,0.00032328,2]
[319599700,1710885127294,-9279.39,0.00032328,2]
[319599701,1710885127305,-2973.35,0.00032328,2]
[319599702,1710885127314,-500.0,0.00032328,2]
[319599703,1710885127324,-1071.73,0.00032328,2]
[319599704,1710885127333,-1557.91,0.00032328,2]
[319599705,1710885127342,-500.0,0.00032328,2]
[319599706,1710885127353,-1497.67,0.00032328,2]
[319599707,1710885127363,-921.84,0.00032328,2]
[319599708,1710885127374,-5460.3,0.00032328,2]
[319599709,1710885127384,-549.68,0.00032328,2]
[319599710,1710885127394,-634.21338407,0.00032328,2]
[319599711,1710885127404,-866.95,0.00032328,2]
[319599712,1710885127414,-500.0,0.00032328,2]
[319599713,1710885127424,-23885.26,0.00032328,2]
[319599714,1710885127435,-6038.59,0.00032328,2]
[319599715,1710885127445,-34338.3,0.00032328,2]
[319599716,1710885127456,-2241.19,0.00032328,2]
[319599717,1710885127468,-870.15,0.00032328,2]
[319599718,1710885127478,-1003.35,0.00032328,2]
[319599719,1710885127488,-500.0,0.00032328,2]
[319599720,1710885127498,-5507.6,0.00032328,2]
[319599721,1710885127508,-5378.59,0.00032328,2]
[319599722,1710885127517,-615.59,0.00032328,2]
[319599723,1710885127527,-500.0,0.00032328,2]
[319599724,1710885127536,-681.39,0.00032328,2]
[319599725,1710885127550,-3623.08,0.00032328,2]
[319599726,1710885127560,-659.74,0.00032328,2]
[319599727,1710885127569,-1648.34,0.00032328,2]
[319599728,1710885127579,-500.0,0.00032328,2]
[319599729,1710885127589,-500.0,0.00032328,2]
[319599730,1710885127599,-7204.29,0.00032328,2]
[319599731,1710885127608,-976.18,0.00032328,2]
[319599732,1710885127619,-1912.73,0.00032328,2]
[319599733,1710885127629,-3082.4,0.00032328,2]
[319599734,1710885127638,-2522.27,0.00032328,2]
[319599735,1710885127647,-6424.1,0.00032328,2]
[319599736,1710885127657,-1570.96,0.00032328,2]
[319599737,1710885127666,-5688.06,0.00032328,2]
[319599738,1710885127675,-1409.47,0.00032328,2]
[319599739,1710885127685,-500.0,0.00032328,2]
[319599740,1710885127694,-2703.38,0.00032328,2]
[319599741,1710885127703,-10351.23,0.00032328,2]
[319599742,1710885127712,-500.0,0.00032328,2]
[319599743,1710885127722,-723.42,0.00032328,2]
[319599744,1710885127731,-3159.85,0.00032328,2]
[319599745,1710885127741,-19207.21,0.00032328,2]
[319599746,1710885127751,-3910.17,0.00032328,2]
[319599747,1710885127760,-989.66,0.00032328,2]
[319599748,1710885127770,-500.0,0.00032328,2]
[319599749,1710885127780,-1575.99,0.00032328,2]
[319599750,1710885127789,-500.0,0.00032328,2]
[319599751,1710885127799,-2518.49,0.00032328,2]
[319599752,1710885127809,-500.0,0.00032328,2]
[319599753,1710885127819,-602.98,0.00032328,2]
[319599754,1710885127828,-2902.62,0.00032328,2]
[319599755,1710885127838,-1081.46,0.00032328,2]
[319599756,1710885127848,-996.99,0.00032328,2]
[319599757,1710885127858,-11316.17,0.00032328,2]
[319599758,1710885127869,-722.94,0.00032328,2]
[319599759,1710885127879,-21059.27,0.00032328,2]
[319599760,1710885127889,-1144.28,0.00032328,2]
[319599761,1710885127898,-500.0,0.00032328,2]
[319599762,1710885127908,-592.77,0.00032328,2]
[319599763,1710885127917,-3248.34,0.00032328,2]
[319599764,1710885127927,-611.45,0.00032328,2]
[319599765,1710885127936,-500.0,0.00032328,2]
[319599766,1710885127946,-500.0,0.00032328,2]
[319599767,1710885127955,-1214.02,0.00032328,2]
[319599768,1710885127965,-5044.94,0.00032328,2]
[319599769,1710885127975,-500.0,0.00032328,2]
[319599770,1710885127984,-6225.21,0.00032328,2]
[319599771,1710885127994,-856.7,0.00032328,2]
[319599772,1710885128004,-608.72,0.00032328,2]
[319599773,1710885128013,-500.0,0.00032328,2]
[319599774,1710885128023,-1511.11,0.00032328,2]
[319599775,1710885128033,-1279.36,0.00032328,2]
[319599776,1710885128042,-8737.55,0.00032328,2]
[319599777,1710885128052,-11752.03,0.00032328,2]
[319599778,1710885128062,-4482.5,0.00032328,2]
[319599779,1710885128071,-472.02657564,0.00032328,2]
[319599780,1710885128081,-1788.46,0.00032328,2]
[319599781,1710885128090,-5316.22,0.00032328,2]
[319599782,1710885128100,-1321.67,0.00032328,2]
[319599783,1710885128109,-22991.35,0.00032328,2]
[319599784,1710885128121,-518.08,0.00032328,2]
[319599785,1710885128130,-1177.76,0.00032328,2]
[319599786,1710885128142,-505.75,0.00032328,2]
[319599787,1710885128152,-1429.54,0.00032328,2]
[319599788,1710885128162,-2886.03,0.00032328,2]
[319599789,1710885128173,-500.0,0.00032328,2]
[319599790,1710885128183,-3473.42,0.00032328,2]
[319599791,1710885128193,-20562.17,0.00032328,2]
[319599792,1710885128203,-4026.93,0.00032328,2]
[319599793,1710885128214,-500.0,0.00032328,2]
[319599794,1710885128223,-805.12,0.00032328,2]
[319599795,1710885128233,-981.11,0.00032328,2]
[319599796,1710885128243,-877.4,0.00032328,2]
[319599797,1710885128254,-500.0,0.00032328,2]
[319599798,1710885128264,-1121.88,0.00032328,2]
[319599799,1710885128274,-836.09,0.00032328,2]
[319599800,1710885128285,-12965.17,0.00032328,2]
[319599801,1710885128295,-8047.18,0.00032328,2]
[319599802,1710885128306,-4640.74,0.00032328,2]
[319599803,1710885128316,-6661.58,0.00032328,2]
[319599804,1710885128326,-500.0,0.00032328,2]
[319599805,1710885128337,-720.32,0.00032328,2]
[319599806,1710885128347,-500.0,0.00032328,2]
[319599807,1710885128358,-3306.12,0.00032328,2]
[319599808,1710885128372,-1406.25,0.00032328,2]
[319599809,1710885128383,-603.58,0.00032328,2]
[319599810,1710885128394,-500.0,0.00032328,2]
[319599811,1710885128405,-6333.98,0.00032328,2]
[319599812,1710885128415,-1438.11,0.00032328,2]
[319599813,1710885128426,-26854.72,0.00032328,2]
[319599814,1710885128436,-2692.37,0.00032328,2]
[319599815,1710885128446,-614.48,0.00032328,2]